bitfinex-derivatives/quotes_ETHF0:USTF0_20250422
["timestamp","ask_amount","ask_price","bid_price","bid_amount"]
[1745351595039,1.18142,1691.9,1691.8,1.18143]
[1745351595347,3.2078,1692.3,1692.2,1.18116]
[1745351595534,4.36506,1692.5,1692.4,1.18102]
[1745351596239,1.6118,1692.5,1692.4,1.18102]
[1745351596644,40.80886733,1692.6,1692.5,1.18095]
[1745351597235,3.2078,1692.8,1692.7,1.18081]
[1745351597435,4.38854,1692.8,1692.7,1.18081]
[1745351597737,45.18854,1692.8,1692.7,1.18081]
[1745351598137,44.0078,1692.8,1692.7,1.18081]
[1745351598642,3.2078,1692.8,1692.7,1.18081]
[1745351599439,40.80886733,1692.9,1692.8,1.18074]
[1745351600541,41.98953733,1692.9,1692.8,1.18074]
[1745351600740,40.80886733,1692.9,1692.8,1.18074]
[1745351601049,0.00886733,1692.9,1692.8,1.18074]
[1745351601245,1.5104,1693.5,1692.8,8.2078]
[1745351601446,2.69069,1693.5,1693.4,1.18032]
[1745351601651,43.49069,1693.5,1693.4,1.18032]
[1745351602348,42.3104,1693.5,1693.4,1.18032]
[1745351602650,1.5104,1693.5,1693.4,1.18032]
[1745351602849,2.69065,1693.5,1693.4,1.18032]
[1745351603944,1.5104,1693.5,1693.4,1.18032]
[1745351605044,0.00886733,1693.6,1693.5,1.18025]
[1745351605238,9.1178,1694.0,1693.9,1.17997]
[1745351605239,3.2078,1694.0,1693.9,1.17997]
[1745351605441,1.18005,1693.8,1693.7,1.18011]
[1745351607652,4.41923,1693.9,1693.8,1.18004]
[1745351607946,3.2392,1693.9,1693.8,1.18004]
[1745351608147,40.8,1694.2,1694.1,1.17983]
[1745351608548,40.8,1694.2,1693.9,5.7532]
[1745351608549,1.6169,1694.3,1694.2,1.17976]
[1745351608745,2.79659,1694.3,1694.2,1.17976]
[1745351609164,49.91859,1694.3,1694.2,1.17976]
[1745351609341,1.17979,1694.2,1694.1,1.17979]
[1745351609847,1.17979,1694.2,1694.1,1.17978]
[1745351610047,51.9467,1694.3,1694.2,1.17976]
[1745351610247,44.0078,1694.3,1694.2,1.17976]
[1745351610950,42.4453,1694.3,1694.2,1.17976]
[1745351611246,42.4453,1694.3,1693.8,3.2078]
[1745351611247,1.17997,1693.9,1693.8,3.2078]
[1745351611449,1.17997,1693.9,1693.8,1.18]
[1745351611653,1.18007,1693.8,1693.7,1.18006]
[1745351612047,2.82533,1693.9,1693.8,1.18004]
[1745351612242,1.6453,1693.9,1693.8,1.18004]
[1745351612450,2.82527,1693.9,1693.8,1.18004]
[1745351612754,1.6453,1693.9,1693.8,1.18004]
[1745351613457,2.82527,1693.9,1693.8,1.18004]
[1745351613958,1.6453,1693.9,1693.8,1.18004]
[1745351615250,3.2252,1694.0,1693.9,1.17997]
[1745351615450,4.8785,1694.0,1693.9,1.17997]
[1745351615650,1.6533,1694.0,1693.9,1.17997]
[1745351616253,4.20205,1694.3,1694.2,1.17976]
[1745351616463,3.1379,1694.3,1694.2,1.17976]
[1745351616670,43.9379,1694.3,1694.2,1.17976]
[1745351617160,6.83729,1694.5,1694.4,1.17962]
[1745351617454,7.29126457,1694.5,1694.1,1.7148]
[1745351617663,1.17981,1694.2,1694.1,1.17979]
[1745351617856,1.17981,1694.2,1694.1,0.00886733]
[1745351618151,7.50181,1694.2,1694.1,0.00886733]
[1745351618350,10.70961,1694.2,1694.1,0.00886733]
[1745351618553,9.05351,1694.2,1694.1,0.00886733]
[1745351618748,12.26131,1694.2,1694.1,1.18869733]
[1745351618956,12.26131,1694.2,1694.1,0.00886733]
[1745351619259,12.26131,1694.2,1694.1,1.18869733]
[1745351619661,10.70961,1694.2,1694.1,1.18869733]
[1745351619851,6.322,1694.2,1694.1,1.18869733]
[1745351620252,2.82009,1694.3,1694.2,1.17976]
[1745351621157,9.14209,1694.3,1694.2,1.17976]
[1745351621758,7.9624,1694.3,1694.2,1.17976]
[1745351622560,6.322,1694.3,1694.2,1.17976]
[1745351623262,1.17974,1694.3,1694.2,1.17971]
[1745351623756,1.17975,1694.3,1694.2,1.17973]
[1745351624061,1.17976,1694.2,1694.1,1.18864733]
[1745351624261,2.79626,1694.2,1694.1,1.18864733]
[1745351624661,2.79626,1694.2,1694.1,0.00886733]
[1745351624662,9.11826,1694.2,1694.1,0.00886733]
[1745351624856,12.32606,1694.2,1694.1,0.00886733]
[1745351625064,11.1463,1694.2,1694.1,1.18869733]
[1745351625262,9.11826,1694.2,1694.1,1.18869733]
[1745351625964,6.322,1694.2,1694.1,1.18869733]
[1745351626159,1.6975,1694.4,1694.3,1.17969]
[1745351627058,1.6975,1694.4,1694.3,2.94589]
[1745351627451,4.145,1694.7,1694.6,1.17948]
[1745351627652,3.2537,1694.8,1694.7,1.17941]
[1745351627962,4.43304,1694.8,1694.7,1.17941]
[1745351628163,10.75504,1694.8,1694.7,1.17941]
[1745351630662,1.17954,1694.6,1694.5,1.1795]
[1745351630857,1.17962,1694.4,1694.3,4.38744]
[1745351631063,1.17962,1694.4,1694.3,1.17280457]
[1745351631265,3.1887,1694.5,1694.4,1.17962]
[1745351631467,1.56576457,1694.5,1694.4,1.17962]
[1745351632267,7.88776457,1694.5,1694.4,1.17962]
[1745351633068,9.06736457,1694.5,1694.4,1.17962]
[1745351634968,1.17973,1694.3,1694.2,1.17968]
[1745351635167,1.17973,1694.3,1694.2,1.17284457]
[1745351636277,7.50173,1694.3,1694.2,1.17284457]
[1745351637078,1.17976,1694.2,1694.1,1.18866733]
[1745351637769,41.97976,1694.2,1694.1,1.18866733]
[1745351638164,48.30176,1694.2,1694.1,0.00886733]
[1745351638374,48.30176,1694.2,1694.1,1.18869733]
[1745351639277,48.30176,1694.2,1694.1,0.00886733]
[1745351640472,48.30176,1694.2,1694.1,1.18869733]
[1745351640671,7.50176,1694.2,1694.1,1.18869733]
[1745351641276,48.30176,1694.2,1694.1,1.18869733]
[1745351641478,7.50176,1694.2,1694.1,1.18869733]
[1745351641679,6.322,1694.2,1694.1,9.39649733]
[1745351642064,6.322,1694.2,1694.1,10.86179733]
[1745351642272,2.74532457,1694.5,1694.4,1.17962]
[1745351642273,1.56576457,1694.5,1694.4,1.17962]
[1745351642468,1.55892914,1694.5,1694.4,1.17962]
[1745351642871,2.73847914,1694.5,1694.4,2.96302]
[1745351643071,7.3518,1694.7,1694.4,1.7834]
[1745351643273,5.32349,1694.7,1694.6,1.17948]
[1745351643473,4.144,1694.7,1694.6,1.17948]
[1745351643672,4.144,1694.7,1694.4,7.68146]
[1745351643673,1.17948,1694.6,1694.5,2.9629]
[1745351643877,1.17948,1694.6,1694.5,1.1795]
[1745351644177,48.44657,1694.8,1694.6,1.17946]
[1745351644178,1.17946,1694.7,1694.6,1.17946]
[1745351644379,1.17951,1694.6,1694.5,1.1795]
[1745351644778,48.44657,1694.8,1694.4,1.17955]
[1745351644779,1.17959,1694.5,1694.4,1.17955]
[1745351644979,48.44657,1694.8,1694.3,7.8493]
[1745351645173,6.322,1694.5,1694.4,1.17962]
[1745351646080,7.50155,1694.5,1694.4,1.17962]
[1745351646379,6.322,1694.5,1694.4,1.17962]
[1745351647178,1.17954,1694.6,1694.5,1.17955]
[1745351648182,7.50154,1694.6,1694.5,1.17955]
[1745351650281,0.10273169,1696.2,1695.1,1.17909]
[1745351650282,3.4227857,1695.4,1695.1,1.17909]
[1745351650578,1.1792,1695.1,1695.0,1.17918]
[1745351650882,4.18664,1695.3,1695.2,1.17907]
[1745351651271,10.50864,1695.3,1695.2,1.17907]
[1745351651477,2.94774,1695.2,1694.6,4.6894]
[1745351651675,2.94784,1695.1,1694.8,1.17933]
[1745351651973,1.17934,1694.9,1694.8,1.17933]
[1745351652170,7.50134,1694.9,1694.8,1.17933]
[1745351652583,1.17939,1694.8,1694.7,1.17938]
[1745351652782,2.96909,1694.8,1694.7,1.18824733]
[1745351653986,2.96904,1694.8,1694.7,1.18824733]
[1745351655072,1.7897,1694.8,1694.7,1.18824733]
[1745351655886,2.96904,1694.8,1694.7,1.18824733]
[1745351656187,9.29104,1694.8,1694.7,1.18824733]
[1745351656682,9.29104,1694.8,1694.7,1.18827733]
[1745351659481,9.29104,1694.8,1694.7,0.00886733]
[1745351659684,9.29104,1694.8,1694.7,1.18827733]
[1745351662389,8.1117,1694.8,1694.7,1.18827733]
[1745351662585,6.322,1694.8,1694.7,1.18827733]
[1745351662786,6.322,1694.8,1694.7,4.46187733]
[1745351663082,8.0019,1694.8,1694.7,4.46187733]
[1745351663272,1.6799,1694.8,1694.7,4.46187733]
[1745351664086,2.85924,1694.8,1694.7,1.18827733]
[1745351665187,8.0019,1694.8,1694.7,1.18827733]
[1745351665788,9.18124,1694.8,1694.7,1.18827733]
[1745351667684,6.322,1694.8,1694.7,1.18827733]
[1745351667885,7.50134,1694.8,1694.7,1.18827733]
[1745351668089,9.22964,1694.8,1694.7,1.18827733]
[1745351670395,8.0503,1694.8,1694.7,1.18827733]
[1745351670595,8.0503,1694.8,1694.7,2.81537733]
[1745351671296,1.7283,1694.8,1694.7,2.81537733]
[1745351676194,1.7283,1694.8,1694.7,6.02317733]
[1745351679604,5.33814733,1695.0,1694.7,4.84376733]
[1745351679803,4.15886733,1695.0,1694.9,1.17927]
[1745351680299,3.2078,1695.7,1695.3,1.179]
[1745351680492,5.85392,1695.7,1695.6,1.17872]
[1745351680692,4.13052,1695.7,1695.6,1.17872]
[1745351680992,44.93052,1695.7,1695.6,1.17872]
[1745351681189,50.0738,1695.7,1695.6,1.17872]
[1745351681403,51.25252,1695.7,1695.6,1.17872]
[1745351681602,1.17897,1695.4,1695.3,1.17895]
[1745351682310,7.50097,1695.4,1695.3,1.17895]
[1745351683708,6.322,1695.4,1695.3,1.17895]
[1745351684212,1.17893,1695.4,1695.3,1.17895]
[1745351684706,10.27279,1695.6,1695.2,3.2078]
[1745351684913,1.17897,1695.4,1695.3,1.17895]
[1745351685127,7.50097,1695.4,1695.3,1.17895]
[1745351687821,7.50093,1695.4,1695.3,1.17895]
[1745351688021,6.322,1695.4,1695.3,1.17895]
[1745351688215,1.17893,1695.4,1695.3,1.17895]
[1745351688419,1.1789,1695.5,1695.4,1.17886]
[1745351689221,7.5009,1695.5,1695.4,1.17886]
[1745351690221,9.26931,1695.5,1695.1,3.2078]
[1745351690417,1.17918,1695.1,1695.0,1.17915]
[1745351690618,1.17916,1695.1,1695.0,1.17913]
[1745351691222,9.26366,1695.1,1695.0,1.17913]
[1745351692126,9.5996,1695.1,1695.0,1.17913]
[1745351692617,4.117,1695.9,1695.6,1.17879]
[1745351692821,3.2078,1696.2,1695.8,1.17865]
[1745351693011,1.6841,1696.1,1696.0,1.17851]
[1745351693212,1.4279,1696.4,1696.3,1.1783]
[1745351693420,1.4279,1696.4,1696.1,2.94602]
[1745351693421,1.17833,1696.3,1696.1,1.17842]
[1745351693721,4.38619,1696.2,1696.0,1.17848]
[1745351694025,1.17855,1696.0,1695.8,3.2078]
[1745351694323,1.6841,1695.9,1695.8,4.38645]
[1745351694819,3.2078,1696.2,1695.8,8.2078]
[1745351695015,8.0061,1696.3,1696.2,1.17837]
[1745351695218,46.71,1696.4,1696.2,1.17837]
[1745351695420,1.1783,1696.3,1696.2,1.17837]
[1745351696014,3.2078,1696.3,1695.8,3.2078]
[1745351696323,1.17845,1696.1,1696.0,1.17849]
[1745351696524,1.17851,1696.0,1695.9,1.17852]
[1745351696723,1.17855,1696.0,1695.8,3.2078]
[1745351696926,1.17858,1695.9,1695.8,4.3864]
[1745351697126,7.50058,1695.9,1695.8,4.3864]
[1745351697326,7.50058,1695.9,1695.8,3.2078]
[1745351697627,1.17867,1695.8,1695.7,1.17869]
[1745351697920,1.17867,1695.8,1695.6,0.00886733]
[1745351697921,1.17872,1695.7,1695.6,0.00886733]
[1745351698121,7.50072,1695.7,1695.6,0.00886733]
[1745351698321,9.04152,1695.7,1695.6,0.00886733]
[1745351698525,1.17889,1695.5,1695.2,4.7211]
[1745351698727,1.17889,1695.5,1695.4,1.17893]
[1745351699319,7.50089,1695.5,1695.4,1.17893]
[1745351699520,1.17898,1695.4,1695.2,4.38681]
[1745351699822,1.17898,1695.4,1695.3,0.00886733]
[1745351700324,0.00886733,1695.6,1695.5,1.17886]
[1745351700922,40.80886733,1695.6,1695.5,1.17886]
[1745351701133,1.17893,1695.4,1695.3,0.00886733]
[1745351701427,1.17893,1695.4,1695.3,1.18786733]
[1745351701725,5.29493,1695.4,1695.3,0.00886733]
[1745351701921,6.77533,1695.4,1695.3,0.00886733]
[1745351702121,13.09733,1695.4,1695.3,0.00886733]
[1745351702330,1.17934,1694.8,1694.7,4.38719]
[1745351702626,4.116,1695.0,1694.9,1.17927]
[1745351702817,1.1792,1695.0,1694.9,1.17927]
[1745351703017,5.2952,1695.1,1694.9,1.17927]
[1745351703219,5.2952,1695.1,1695.0,1.1792]
[1745351703426,5.91,1695.3,1694.8,4.74316]
[1745351703427,5.91,1695.3,1695.2,1.17907]
[1745351703618,1.179,1695.3,1695.2,1.17907]
[1745351703826,1.1791,1695.2,1695.1,1.17911]
[1745351704029,1.17905,1695.3,1695.2,1.17906]
[1745351704223,7.50105,1695.3,1695.2,1.17906]
[1745351704522,6.322,1695.3,1695.2,1.17906]
[1745351704727,7.501,1695.3,1695.2,1.17906]
[1745351705024,6.322,1695.3,1695.2,1.17906]
[1745351705227,4.12486733,1695.6,1695.5,1.17886]
[1745351705927,1.17901,1695.3,1695.1,3.2078]
[1745351706129,1.17907,1695.2,1695.1,4.38691]
[1745351706326,1.17907,1695.2,1694.9,1.7328]
[1745351706327,7.3238,1695.3,1694.9,4.9406]
[1745351706525,7.3238,1695.3,1694.9,7.88876]
[1745351706727,5.29504,1695.3,1695.2,1.17907]
[1745351707129,1.17914,1695.1,1695.0,1.1792]
[1745351707725,1.17911,1695.2,1695.1,1.1791]
[1745351708229,7.50111,1695.2,1695.1,1.1791]
[1745351709230,8.87441,1695.2,1695.1,1.1791]
[1745351709424,6.322,1695.2,1695.1,1.1791]
[1745351709625,6.322,1695.2,1695.1,4.3869]
[1745351710025,6.322,1695.2,1695.1,9.3869]
[1745351710227,6.84937733,1695.6,1695.5,1.17886]
[1745351710428,1.17889,1695.5,1695.4,1.17888]
[1745351710629,8.22269733,1695.6,1695.5,1.17886]
[1745351711121,0.00886733,1695.6,1695.5,1.17886]
[1745351711325,6.33086733,1695.6,1695.5,1.17886]
[1745351711525,7.95356733,1695.6,1695.5,1.17886]
[1745351712025,9.13235733,1695.6,1695.5,1.17886]
[1745351712831,23.31547733,1695.6,1695.1,6.15561]
[1745351713133,1.17907,1695.3,1695.2,1.17904]
[1745351713533,1.17907,1695.2,1695.1,4.38689]
[1745351713729,1.6227,1695.2,1694.9,6.362]
[1745351714035,2.80181,1695.2,1695.1,1.17913]
[1745351714333,1.1792,1695.0,1694.9,4.38704]
[1745351714634,7.9447,1695.2,1694.8,1.18816733]
[1745351714635,1.17927,1694.9,1694.8,1.18816733]
[1745351714931,1.7829,1694.9,1694.8,1.18820733]
[1745351715133,8.1049,1694.9,1694.8,1.18820733]
[1745351715838,9.28417,1694.9,1694.8,1.18820733]
[1745351716037,9.28417,1694.9,1694.8,0.00886733]
[1745351716229,9.28417,1694.9,1694.8,1.18820733]
[1745351716836,9.28417,1694.9,1694.8,0.00886733]
[1745351717439,9.28417,1694.9,1694.8,1.18820733]
[1745351718135,8.1049,1694.9,1694.8,1.18820733]
[1745351718438,8.1049,1694.9,1694.8,2.86180733]
[1745351719132,6.322,1694.9,1694.8,7.86180733]
[1745351719335,1.17917,1695.1,1695.0,1.17916]
[1745351719535,8.46001,1695.2,1695.1,1.17913]
[1745351719726,1.17916,1695.1,1695.0,1.17915]
[1745351720134,6.322,1695.1,1695.0,1.17915]
[1745351720333,7.50113,1695.1,1695.0,1.17915]
[1745351720533,9.12863,1695.1,1695.0,1.17915]
[1745351720732,7.9495,1695.1,1695.0,1.17915]
[1745351721232,9.12863,1695.1,1695.0,1.17915]
[1745351721630,7.9495,1695.1,1695.0,1.17915]
[1745351722932,9.12863,1695.1,1695.0,1.17915]
[1745351724137,7.9495,1695.1,1695.0,1.17915]
[1745351724733,7.9495,1695.1,1695.0,2.96665]
[1745351724937,7.9495,1695.1,1695.0,1.17915]
[1745351725130,1.6275,1695.1,1695.0,1.17915]
[1745351725326,1.6275,1695.1,1695.0,2.96665]
[1745351726330,2.80663,1695.1,1695.0,2.96665]
[1745351726641,2.80663,1695.1,1695.0,1.17915]
[1745351727037,1.1792,1695.0,1694.9,4.38703]
[1745351727339,7.50119,1695.1,1695.0,1.1792]
[1745351728932,1.1792,1695.0,1694.9,4.38702]
[1745351729835,6.3361,1695.1,1695.0,1.1792]
[1745351730034,6.3361,1695.1,1695.0,2.87]
[1745351730339,1.17902,1695.3,1695.2,1.17907]
[1745351731133,7.50102,1695.3,1695.2,1.17907]
[1745351731339,6.322,1695.3,1695.2,1.17907]
[1745351731741,7.501,1695.3,1695.2,2.86987]
[1745351732243,7.501,1695.3,1695.2,1.17907]
[1745351733639,6.322,1695.3,1695.2,1.17907]
[1745351733845,6.322,1695.3,1695.2,2.86377]
[1745351734236,1.3741,1695.4,1695.3,1.179]
[1745351734437,2.55303,1695.4,1695.3,1.179]
[1745351734637,2.53893,1695.4,1695.3,1.179]
[1745351735143,1.17906,1695.3,1695.2,1.17902]
[1745351735345,8.86099,1695.4,1695.3,1.179]
[1745351735541,1.17903,1695.3,1695.2,1.17901]
[1745351736046,8.86096,1695.4,1695.3,1.179]
[1745351736339,1.36,1695.4,1695.3,4.3868]
[1745351736542,1.453,1695.5,1695.4,1.17893]
[1745351736741,0.0141,1695.5,1695.4,2.84273]
[1745351736946,0.00886733,1695.6,1695.5,1.17886]
[1745351737246,0.00886733,1695.6,1695.5,6.05046]
[1745351741250,1.66126733,1695.6,1695.5,6.05046]
[1745351742335,0.00886733,1695.6,1695.5,6.05046]
[1745351742534,0.00886733,1695.6,1695.5,7.15376]
[1745351743749,1.74886733,1695.6,1695.5,7.15376]
[1745351745443,1.74886733,1695.6,1695.5,4.38666]
[1745351747256,8.07086733,1695.6,1695.5,4.38666]
[1745351748147,8.07086733,1695.6,1695.3,7.3438]
[1745351748349,1.17893,1695.4,1695.3,4.38673]
[1745351748851,2.58133,1695.4,1695.3,4.38673]
[1745351749149,8.90333,1695.4,1695.3,4.38673]
[1745351749550,7.7244,1695.4,1695.3,4.38673]
[1745351749743,8.90333,1695.4,1695.3,4.38673]
[1745351749941,9.3569,1695.4,1695.3,4.38673]
[1745351750351,10.53583,1695.4,1695.3,4.38673]
[1745351751849,9.3569,1695.4,1695.3,4.38673]
[1745351752254,10.53583,1695.4,1695.3,4.38673]
[1745351752454,9.3569,1695.4,1695.3,4.38673]
[1745351752654,10.53583,1695.4,1695.3,4.38673]
[1745351755352,9.3569,1695.4,1695.3,4.38673]
[1745351758162,0.0141,1695.5,1695.4,1.17893]
[1745351758462,0.0141,1695.5,1695.4,2.96083]
[1745351758653,1.18765733,1695.6,1695.5,1.17886]
[1745351758958,1.18765733,1695.6,1695.5,4.38666]
[1745351759153,0.00886733,1695.6,1695.5,4.38666]
[1745351760864,1.18765733,1695.6,1695.5,4.38666]
[1745351761367,1.17886,1695.5,1695.4,1.17889]
[1745351761959,1.71876733,1695.6,1695.5,1.17886]
[1745351762164,1.71876733,1695.6,1695.5,4.38666]
[1745351762564,1.71876733,1695.6,1695.5,6.16976]
[1745351763369,0.0141,1695.7,1695.6,1.17879]
[1745351763568,0.0141,1695.7,1695.6,4.44589]
[1745351763769,40.8,1695.8,1695.7,1.17872]
[1745351764066,40.8,1695.8,1695.7,6.17812]
[1745351764067,1.7181,1695.8,1695.7,6.17812]
[1745351765060,0.0141,1695.9,1695.8,1.17865]
[1745351765264,0.0141,1695.9,1695.8,8.20895]
[1745351765564,0.00886733,1695.9,1695.8,8.20895]
[1745351765765,0.00886733,1695.9,1695.8,8.67450919]
[1745351766069,0.00886733,1695.9,1695.8,13.67450919]
[1745351766469,0.00886733,1695.9,1695.8,8.67450919]
[1745351767374,0.0052,1696.0,1695.9,1.17858]
[1745351767566,0.0052,1696.0,1695.9,6.16228]
[1745351767766,3.0844,1696.1,1696.0,1.17851]
[1745351767967,3.0844,1696.1,1696.0,2.95441]
[1745351768166,9.4064,1696.1,1696.0,2.95441]
[1745351769971,6.322,1696.1,1696.0,2.95441]
[1745351770168,1.17811,1696.6,1696.0,3.2513]
[1745351770478,5.83291,1696.6,1696.5,1.1781]
[1745351771173,12.15491,1696.6,1696.5,1.1781]
[1745351772270,1.17823,1696.5,1696.4,1.17822]
[1745351772461,2.92283,1696.5,1696.4,1.17822]
[1745351772666,9.2317,1696.6,1696.5,1.17816]
[1745351772871,10.9763,1696.6,1696.5,1.17816]
[1745351776274,10.9763,1696.6,1696.5,4.38596]
[1745351779081,10.9763,1696.6,1696.5,6.02566]
[1745351779282,1.17779,1697.1,1697.0,1.17777]
[1745351779470,2.52379,1697.1,1697.0,1.17777]
[1745351779869,1.17781,1697.0,1696.9,1.18668095]
[1745351780274,7.49981,1697.0,1696.9,1.18668095]
[1745351780689,10.58621,1697.0,1696.9,0.00884095]
[1745351780875,15.58621,1697.0,1696.9,1.18672095]
[1745351781184,10.58621,1697.0,1696.9,0.00884095]
[1745351781377,10.58621,1697.0,1696.9,1.18672095]
[1745351782383,9.4084,1697.0,1696.9,1.18672095]
[1745351783277,10.58621,1697.0,1696.9,1.18672095]
[1745351783775,9.4084,1697.0,1696.9,1.18672095]
[1745351784883,9.4084,1697.0,1696.9,4.39452095]
[1745351786682,9.4084,1697.0,1696.9,6.14152095]
[1745351787282,10.58621,1697.0,1696.9,4.39452095]
[1745351787876,9.4084,1697.0,1696.9,4.39452095]
[1745351788072,9.4084,1697.0,1696.9,6.16452095]
[1745351788479,10.58621,1697.0,1696.9,4.39452095]
[1745351788885,9.4084,1697.0,1696.9,4.39452095]
[1745351790285,6.322,1697.0,1696.9,4.39452095]
[1745351790483,6.322,1697.0,1696.9,7.48892095]
[1745351790683,6.322,1697.0,1696.9,4.39452095]
[1745351790885,7.49981,1697.0,1696.9,4.39452095]
[1745351791083,10.67151,1697.0,1696.9,4.39452095]
[1745351791383,10.67151,1697.0,1696.9,1.18672095]
[1745351792080,9.4937,1697.0,1696.9,4.39452095]
[1745351792393,1.17758,1697.4,1697.3,1.17755]
[1745351793390,7.49958,1697.4,1697.3,1.17755]
[1745351794196,10.69968,1697.4,1697.3,1.17755]
[1745351794998,10.69964,1697.4,1697.3,1.17755]
[1745351795297,1.17768,1697.3,1697.2,1.17764]
[1745351795487,1.7715,1697.3,1697.2,1.17764]
[1745351795686,2.94911,1697.3,1697.2,1.17764]
[1745351796293,8.0935,1697.3,1697.2,1.17764]
[1745351796794,6.322,1697.3,1697.2,1.17764]
[1745351796991,6.322,1697.3,1697.2,2.32374]
[1745351797195,1.4286,1697.4,1697.3,1.17761]
[1745351797395,1.4286,1697.4,1697.3,6.10281]
[1745351797595,1.4286,1697.4,1697.3,7.56001]
[1745351797782,1.6587,1697.6,1697.5,1.17747]
[1745351797988,40.8,1698.0,1697.5,10.26448]
[1745351798197,40.8,1698.0,1697.9,1.17719]
[1745351798400,1.17721,1697.9,1697.8,1.17721]
[1745351798600,1.17721,1697.9,1697.8,0.00884095]
[1745351798895,1.17721,1697.9,1697.8,1.18610095]
[1745351799096,7.49921,1697.9,1697.8,1.18610095]
[1745351799295,10.7999,1697.9,1697.8,1.18610095]
[1745351799495,11.97709,1697.9,1697.8,1.18610095]
[1745351800792,11.97709,1697.9,1697.8,0.00884095]
[1745351801690,22.88709,1697.9,1697.8,0.00884095]
[1745351802096,26.09489,1697.9,1697.8,0.00884095]
[1745351803293,21.09489,1697.9,1697.8,0.00884095]
[1745351805304,17.88709,1697.9,1697.8,0.00884095]
[1745351805500,21.09489,1697.9,1697.8,0.00884095]
[1745351806299,17.88709,1697.9,1697.8,0.00884095]
[1745351806503,17.88709,1697.9,1697.8,1.18610095]
[1745351807599,4.3668573,1697.9,1697.8,9.39390095]
[1745351807795,4.3668573,1697.9,1697.8,16.10100095]
[1745351808206,1.7787,1698.2,1698.1,1.17705]
[1745351808814,1.7787,1698.2,1698.1,2.83045]
[1745351809014,1.7787,1698.2,1698.0,4.38487]
[1745351809214,1.17705,1698.1,1698.0,6.03827]
[1745351809614,9.27774,1698.2,1698.1,1.17705]
[1745351809814,9.27774,1698.2,1698.1,2.83045]
[1745351809815,6.322,1698.2,1698.1,2.83045]
[1745351810013,6.322,1698.2,1698.1,3.97625]
[1745351810209,43.9155,1698.5,1698.1,2.7992]
[1745351810413,1.6811,1698.4,1698.3,1.17688]
[1745351810714,43.4112,1698.5,1698.4,1.17684]
[1745351810909,45.0923,1698.5,1698.4,1.17684]
[1745351811111,50.2375,1698.5,1698.4,1.17684]
[1745351811612,6.322,1698.5,1698.4,8.53464]
[1745351811816,1.4169,1699.2,1698.7,2.9416]
[1745351812113,2.58929052,1699.2,1699.0,1.17637]
[1745351812306,1.6193,1699.1,1699.0,1.17637]
[1745351812713,40.8,1699.4,1699.3,1.17622]
[1745351812910,7.08602,1699.6,1699.3,1.17622]
[1745351813116,7.08602,1699.6,1699.5,1.17608]
[1745351813117,5.91,1699.6,1699.5,1.17608]
[1745351813315,4.38364,1699.9,1699.3,6.14836]
[1745351813611,4.38364,1699.9,1699.8,1.17587]
[1745351813612,40.8,1699.9,1699.8,1.17587]
[1745351814206,48.29783,1699.9,1699.7,1.18473095]
[1745351814414,1.17612,1699.5,1699.3,4.384]
[1745351814710,62.182,1699.9,1699.3,3.2078]
[1745351814711,1.17597,1699.7,1699.3,3.2078]
[1745351814908,1.17589,1699.8,1699.7,1.17594]
[1745351815108,1.17589,1699.8,1699.5,3.2078]
[1745351815109,1.17589,1699.8,1699.6,2.81118]
[1745351815310,1.17589,1699.8,1699.7,6.01894]
[1745351815311,6.31315904,1699.8,1699.7,6.01894]
[1745351815504,6.31315904,1699.8,1699.7,10.16794]
[1745351815811,6.31315904,1699.8,1699.7,2.81114]
[1745351816011,6.31315904,1699.8,1699.7,1.6352]
[1745351816217,8.02365904,1699.8,1699.7,2.81114]
[1745351816810,8.02365904,1699.8,1699.7,1.6352]
[1745351817409,8.02365904,1699.8,1699.7,2.81114]
[1745351817609,9.19952904,1699.8,1699.7,1.6352]
[1745351817817,9.19952904,1699.8,1699.5,0.00884095]
[1745351817818,1.17601,1699.6,1699.5,0.00884095]
[1745351819220,7.49801,1699.6,1699.5,0.00884095]
[1745351819415,1.17608,1699.5,1699.4,0.0138]
[1745351819618,2.88128,1699.5,1699.4,0.0138]
[1745351819816,1.17618,1699.4,1699.3,1.17622]
[1745351820016,1.17622,1699.3,1699.2,2.93476]
[1745351820213,7.49822,1699.3,1699.2,1.7585]
[1745351820516,6.322,1699.3,1699.2,2.93479]
[1745351824418,6.322,1699.3,1699.2,1.7585]
[1745351824612,1.17629,1699.2,1699.1,3.23044095]
[1745351824814,2.81849,1699.2,1699.1,4.90984095]
[1745351825119,9.14049,1699.2,1699.1,4.89604095]
[1745351825720,9.14049,1699.2,1699.1,0.00884095]
[1745351826316,9.14049,1699.2,1699.1,1.18520095]
[1745351826515,9.14049,1699.2,1699.1,0.00884095]
[1745351827319,9.14049,1699.2,1699.1,1.18520095]
[1745351827518,9.14049,1699.2,1699.1,0.00884095]
[1745351827718,7.9642,1699.2,1699.1,4.39300095]
[1745351828027,7.9642,1699.2,1699.1,2.95060095]
[1745351828226,9.14049,1699.2,1699.1,2.95060095]
[1745351828427,7.9642,1699.2,1699.1,2.95060095]
[1745351829225,9.14049,1699.2,1699.1,2.95060095]
[1745351829424,7.9642,1699.2,1699.1,2.95060095]
[1745351829826,9.14049,1699.2,1699.1,1.18520095]
[1745351830029,15.05049,1699.2,1699.1,0.00884095]
[1745351830329,1.17636,1699.1,1699.0,1.19023]
[1745351830517,2.83476,1699.1,1699.0,1.19023]
[1745351830723,2.83476,1699.1,1699.0,1.17643]
[1745351830922,1.17646,1699.0,1698.9,1.17643]
[1745351831226,7.9804,1699.0,1698.9,1.17643]
[1745351831431,9.15683,1699.0,1698.9,1.17643]